bitfinex/quotes_SOLUSD_20250726
["timestamp","ask_amount","ask_price","bid_price","bid_amount"]
[1753520997971,6.64344221,188.54,188.48,0.68]
[1753520998173,0.66,188.53,188.48,0.68]
[1753520998367,0.66,188.52,188.48,0.68]
[1753520999065,0.66,188.52,188.47,13.54046355]
[1753520999283,0.66,188.52,188.47,14.22046355]
[1753521000059,0.66,188.52,188.48,6.64344221]
[1753521000261,0.66,188.51,188.46,6.64344221]
[1753521000457,5.30428518,188.53,188.47,0.68]
[1753521000662,12.60742807,188.54,188.48,6.64344221]
[1753521001080,5.9644665,188.53,188.47,7.32344221]
[1753521002180,0.14216157,188.54,188.48,7.32344221]
[1753521002374,6.78560378,188.54,188.48,7.32344221]
[1753521002579,7.44560378,188.54,188.48,7.32344221]
[1753521002986,0.66,188.54,188.48,7.32344221]
[1753521003191,0.66,188.54,188.49,6.64344221]
[1753521003372,5.44579455,188.55,188.49,7.32344221]
[1753521003969,0.94432314,188.56,188.5,7.32344221]
[1753521004373,0.94432314,188.56,188.5,12.62825204]
[1753521004574,12.636268,188.58,188.51,7.32344221]
[1753521005972,7.31344221,188.57,188.51,0.68]
[1753521006494,0.03,188.58,188.52,6.64344221]
[1753521006676,0.03,188.58,188.53,7.31344221]
[1753521007201,0.03,188.56,188.54,0.67]
[1753521008084,0.7,188.56,188.51,8.24554221]
[1753521008292,0.7,188.56,188.51,8.91554221]
[1753521008498,0.03,188.56,188.52,0.67]
[1753521008805,0.03,188.56,188.53,0.67]
[1753521009310,0.0732487,188.55,188.54,0.67]
[1753521010987,0.0732487,188.55,188.54,5.97391428]
[1753521011189,0.03,188.58,188.57,26.0]
[1753521011493,0.03,188.59,188.58,25.03022618]
[1753521011688,0.03,188.59,188.58,25.70022618]
[1753521012082,0.03,188.59,188.58,63.78022618]
[1753521012284,0.03,188.63,188.58,44.2599886]
[1753521012488,0.03,188.63,188.62,6.64344221]
[1753521012872,0.03,188.63,188.62,7.31344221]
[1753521013701,0.03,188.63,188.62,6.64344221]
[1753521013878,0.03,188.63,188.62,0.67]
[1753521014076,0.03,188.63,188.6,38.08]
[1753521014286,0.03,188.63,188.62,7.31344221]
[1753521015175,0.03,188.63,188.62,24.09812618]
[1753521016182,0.03,188.63,188.62,29.3997909]
[1753521019472,8.85834239,188.64,188.62,29.3997909]
[1753521019473,8.85834239,188.64,188.62,36.32755625]
[1753521019677,8.85834239,188.64,188.63,40.48702278]
[1753521020113,8.85834239,188.64,188.63,33.84358057]
[1753521020282,0.03,188.65,188.64,16.78468397]
[1753521020489,0.03,188.65,188.64,68.13156839]
[1753521020676,0.1,188.74,188.72,16.78468397]
[1753521020876,0.1,188.74,188.71,6.64344221]
[1753521021087,0.77,188.74,188.72,44.70344221]
[1753521021284,0.1,188.74,188.72,44.70344221]
[1753521021506,0.77,188.74,188.72,44.70344221]
[1753521021704,0.67,188.73,188.72,6.64344221]
[1753521021914,0.1,188.74,188.73,16.78468397]
[1753521022116,0.1,188.74,188.73,24.09812618]
[1753521022402,0.1,188.74,188.73,29.39670086]
[1753521022711,0.1,188.76,188.75,26.0]
[1753521022898,1e-08,188.76,188.75,89.5545275]
[1753521023102,1e-08,188.76,188.75,90.2245275]
[1753521023304,1e-08,188.76,188.75,103.56869285]
[1753521024012,0.67,188.86,188.77,0.14216157]
[1753521024210,0.67,188.88,188.85,6.64344221]
[1753521024402,0.67,188.87,188.84,38.06]
[1753521024587,0.67,188.86,188.84,6.64344221]
[1753521024783,0.67,188.85,188.84,6.64344221]
[1753521025101,0.67,188.85,188.81,44.70344221]
[1753521025298,8.15433887,188.93,188.79,38.73]
[1753521025498,6.64344221,188.89,188.83,6.64344221]
[1753521025703,0.67,188.88,188.8,38.26]
[1753521025900,6.64344221,188.86,188.8,44.90344221]
[1753521026107,0.67,188.85,188.8,44.90344221]
[1753521026444,5.96525689,188.85,188.8,6.64344221]
[1753521026613,0.67,188.84,188.79,44.94344221]
[1753521026820,5.29525689,188.85,188.79,44.94344221]
[1753521026996,5.29486255,188.87,188.81,6.64344221]
[1753521027194,0.67,188.85,188.81,6.64344221]
[1753521027393,0.67,188.84,188.81,6.64344221]
[1753521027594,0.67,188.83,188.8,6.64344221]
[1753521027797,39.2347968,188.9,188.8,6.64344221]
[1753521027798,0.67,188.9,188.82,6.64344221]
[1753521027995,6.64344221,188.85,188.78,6.64344221]
[1753521028200,6.64344221,188.85,188.79,38.44]
[1753521028392,12.60895339,188.84,188.78,6.64344221]
[1753521028592,0.67,188.83,188.78,6.64344221]
[1753521028807,6.64344221,188.81,188.75,38.54]
[1753521029013,6.64344221,188.81,188.7,7.8239]
[1753521029014,6.64344221,188.78,188.7,7.8239]
[1753521029311,6.64344221,188.74,188.67,6.64344221]
[1753521029500,0.67,188.73,188.67,6.64344221]
[1753521029812,0.67,188.73,188.66,39.23]
[1753521029813,0.67,188.73,188.68,6.64344221]
[1753521030008,0.67,188.72,188.67,6.64344221]
[1753521030193,26.0,188.77,188.66,6.64344221]
[1753521030194,0.67,188.71,188.66,6.64344221]
[1753521030398,0.67,188.7,188.66,6.64344221]
[1753521030615,0.67,188.7,188.66,11.94395802]
[1753521030916,39.24368396,188.77,188.66,11.94395802]
[1753521030917,0.67,188.72,188.67,6.64344221]
[1753521031621,6.64344221,188.7,188.63,6.64344221]
[1753521031830,0.67,188.69,188.63,45.18344221]
[1753521032287,0.67,188.69,188.64,6.64344221]
[1753521032491,0.67,188.69,188.65,5.30082162]
[1753521033201,0.67,188.69,188.64,5.97107803]
[1753521033407,0.67,188.68,188.64,5.30107803]
[1753521033690,7.31344221,188.68,188.61,7.31344221]
[1753521034016,6.64344221,188.63,188.59,0.06]
[1753521034397,0.67,188.62,188.59,0.06]
[1753521035822,0.7,188.61,188.59,0.06]
[1753521036002,7.34344221,188.61,188.59,0.06]
[1753521036210,7.34344221,188.6,188.59,0.06]
[1753521038798,26.0,188.68,188.59,0.06]
[1753521038799,0.7,188.65,188.59,6.70344221]
[1753521038997,0.7,188.65,188.6,6.64344221]
[1753521039416,0.7,188.65,188.6,7.34344221]
[1753521040320,0.7,188.65,188.61,6.64344221]
[1753521041458,0.7,188.67,188.61,7.34344221]
[1753521041605,7.34344221,188.67,188.61,6.64344221]
[1753521041795,6.64344221,188.64,188.59,0.06]
[1753521042000,0.7,188.66,188.59,0.06]
[1753521042001,6.64344221,188.61,188.59,0.06]
[1753521042196,7.34344221,188.6,188.59,0.06]
[1753521042623,12.64566914,188.6,188.59,0.06]
[1753521044518,12.64566914,188.6,188.55,0.06]
[1753521044519,26.0,188.56,188.55,0.06]
[1753521044734,32.64344221,188.56,188.55,0.06]
[1753521044907,33.34344221,188.56,188.55,0.06]
[1753521046431,12.64599068,188.59,188.55,0.06]
[1753521046630,11.94599068,188.59,188.55,0.06]
[1753521046813,6.64344221,188.56,188.55,0.06]
[1753521048432,6.64344221,188.57,188.55,0.06]
[1753521048736,6.64344221,188.56,188.55,0.06]
[1753521048977,7.34344221,188.56,188.55,0.06]
[1753521049235,33.34344221,188.56,188.55,0.06]
[1753521050218,38.64679392,188.56,188.55,0.06]
[1753521050640,0.03,188.59,188.55,0.06]
[1753521050826,6.67344221,188.59,188.55,0.06]
[1753521051029,6.64344221,188.58,188.55,0.06]
[1753521051534,0.03,188.59,188.55,0.76]
[1753521051738,7.37344221,188.59,188.55,0.06]
[1753521052145,0.73,188.59,188.55,0.06]
[1753521053165,0.03,188.59,188.55,0.76]
[1753521054233,5.3325328,188.59,188.55,0.76]
[1753521054433,6.0325328,188.59,188.55,0.06]
[1753521054633,6.0325328,188.59,188.55,0.76]
[1753521054843,5.3325328,188.59,188.55,0.76]
[1753521056169,0.73,188.59,188.55,0.76]
[1753521056498,0.03,188.59,188.55,0.76]
[1753521058345,0.73,188.59,188.55,0.06]
[1753521059938,6.03251642,188.59,188.55,0.06]
[1753521060143,0.73,188.59,188.55,0.06]
[1753521060877,0.7,188.58,188.55,0.06]
[1753521061087,38.4,188.57,188.55,0.06]
[1753521061375,39.1,188.57,188.55,0.06]
[1753521061585,6.00335171,188.56,188.55,0.06]
[1753521061875,29.43147789,188.56,188.55,0.06]
[1753521062057,26.0,188.53,188.51,0.06]
[1753521062244,71.02344221,188.52,188.51,0.06]
[1753521062750,71.72344221,188.52,188.51,0.06]
[1753521063549,43.66402797,188.54,188.51,0.06]
[1753521065576,26.0,188.55,188.52,7.34344221]
[1753521065786,0.03,188.59,188.52,7.34344221]
[1753521065787,6.64344221,188.58,188.52,7.34344221]
[1753521066492,32.64344221,188.58,188.52,0.7]
[1753521066650,37.94649974,188.58,188.52,6.00444028]
[1753521066977,0.03,188.59,188.55,6.64344221]
[1753521067147,0.03,188.59,188.55,7.33344221]
[1753521067343,26.0,188.58,188.55,7.33344221]
[1753521067648,26.71,188.58,188.53,6.64344221]
[1753521067860,26.0,188.58,188.54,0.69]
[1753521068670,7.35344221,188.57,188.51,8.95694221]
[1753521068871,6.64344221,188.55,188.51,0.06]
[1753521069283,26.71,188.54,188.51,0.06]
[1753521070177,26.0,188.54,188.51,0.06]
[1753521070379,26.0,188.54,188.51,0.75]
[1753521070875,38.46,188.55,188.51,0.75]
[1753521071882,39.17,188.55,188.51,0.75]
[1753521073198,38.46,188.55,188.52,7.33344221]
[1753521073376,0.03,188.59,188.54,6.64344221]
[1753521073693,38.42,188.58,188.54,7.33344221]
[1753521074590,39.13,188.58,188.54,7.33344221]
[1753521074965,39.13,188.58,188.54,6.64344221]
[1753521075788,39.13,188.58,188.53,11.94745609]
[1753521075988,39.13,188.58,188.53,12.63745609]
[1753521077074,0.03,188.59,188.55,6.64344221]
[1753521077387,0.03,188.59,188.56,6.64344221]
[1753521077589,0.71,188.58,188.54,6.64344221]
[1753521078084,0.71,188.58,188.54,7.33344221]
[1753521078588,0.03,188.59,188.54,12.63735503]
[1753521078966,0.74,188.59,188.54,12.63735503]
[1753521079484,0.74,188.59,188.55,6.64344221]
[1753521079675,0.74,188.59,188.55,7.33344221]
[1753521079878,0.03,188.59,188.55,6.64344221]
[1753521080185,0.03,188.59,188.58,6.64344221]
[1753521080579,0.03,188.59,188.58,7.33344221]
[1753521081477,0.03,188.59,188.58,12.63623147]
[1753521086285,0.03,188.59,188.57,8.17904221]
[1753521087091,0.03,188.59,188.57,13.48208053]
[1753521087407,0.03,188.59,188.57,14.17208053]
[1753521087604,0.03,188.59,188.58,7.33344221]
[1753521088294,0.03,188.59,188.58,12.63623147]
[1753521089002,0.03,188.59,188.58,11.94623147]
[1753521089195,0.74,188.59,188.55,7.1738055]
[1753521089402,0.71,188.58,188.54,87.4]
[1753521089707,0.03,188.59,188.54,94.73344221]
[1753521089911,0.74,188.59,188.54,94.73344221]
[1753521090405,0.74,188.59,188.55,5.99358156]
[1753521092787,0.03,188.59,188.55,5.99358156]
[1753521092991,0.03,188.59,188.56,0.69]
[1753521093377,0.03,188.59,188.57,0.69]
[1753521093579,0.03,188.59,188.55,11.94702377]
[1753521093789,0.03,188.59,188.58,6.64344221]
[1753521094407,0.03,188.59,188.58,7.33344221]
[1753521095003,0.03,188.59,188.58,12.63623147]
[1753521096817,0.03,188.59,188.58,10.13532834]
[1753521097587,0.03,188.59,188.58,5.99278926]
[1753521098112,0.03,188.59,188.58,10.13532834]
[1753521099096,0.03,188.59,188.58,5.99278926]
[1753521100519,0.03,188.59,188.58,10.13532834]
[1753521103123,0.03,188.59,188.58,48.27532834]
[1753521103820,0.03,188.59,188.58,65.06001231]
[1753521104005,0.03,188.59,188.58,65.59029123]
[1753521104401,0.03,188.59,188.58,72.19579123]
[1753521105018,0.03,188.59,188.58,68.05325215]
[1753521105221,0.03,188.59,188.58,72.19579123]
[1753521108653,0.03,188.59,188.55,4.14253908]
[1753521108939,0.03,188.59,188.54,0.06]
[1753521108940,4.17253908,188.59,188.56,38.12]
[1753521109245,0.67,188.58,188.56,38.12]
[1753521110262,0.03,188.59,188.54,1.29039142]
[1753521110559,0.03,188.59,188.56,4.14253908]
[1753521110837,0.03,188.59,188.57,38.12]
[1753521111833,0.67,188.58,188.57,38.12]
[1753521112733,0.67,188.58,188.56,43.42307478]
[1753521113714,0.03,188.59,188.57,38.12]
[1753521114239,0.03,188.59,188.57,43.42300695]
[1753521115118,0.7,188.59,188.57,38.12]
[1753521116745,0.67,188.58,188.57,38.12]
[1753521116935,0.67,188.58,188.54,4.20253908]
[1753521117242,0.67,188.57,188.55,38.12]
[1753521118343,0.67,188.57,188.55,38.18]
[1753521118646,0.7,188.59,188.55,43.48362985]
[1753521119437,0.03,188.59,188.58,4.14253908]
[1753521119631,0.03,188.59,188.58,42.26253908]
[1753521119835,0.03,188.59,188.58,42.96253908]
[1753521120348,0.03,188.63,188.59,16.78468397]
[1753521120551,0.03,188.63,188.62,4.14253908]
[1753521120747,0.03,188.63,188.62,42.26253908]
[1753521121049,0.03,188.63,188.62,42.96253908]
[1753521121348,0.03,188.63,188.62,4.84253908]
[1753521121654,0.03,188.63,188.62,48.2642038]
[1753521124035,0.03,188.63,188.62,65.04888777]
[1753521124241,0.03,188.67,188.63,16.78468397]
[1753521124447,0.03,188.67,188.66,4.14253908]
[1753521124751,0.03,188.67,188.66,42.26253908]
[1753521125135,0.03,188.67,188.66,38.12]
[1753521126151,0.03,188.67,188.66,47.56307973]
[1753521127332,0.03,188.67,188.66,48.24307973]
[1753521127732,0.03,188.67,188.66,65.0277637]
[1753521128259,0.03,188.67,188.66,67.68903297]
[1753521128440,0.03,188.67,188.66,68.21908703]
[1753521131449,0.03,188.67,188.66,74.33638703]
[1753521132563,0.03,188.67,188.66,8.49186398]
[1753521132855,0.03,188.67,188.66,68.19908703]
[1753521134061,0.03,188.67,188.66,43.40054065]
[1753521134741,0.03,188.67,188.66,47.54307973]
[1753521135351,0.74,188.67,188.66,43.40054065]
[1753521135946,0.74,188.67,188.66,38.1]
[1753521136154,0.74,188.67,188.66,43.40054065]
[1753521136363,0.74,188.67,188.66,38.1]
[1753521138759,0.74,188.67,188.65,38.1]
[1753521139167,0.74,188.67,188.64,9.44358237]
[1753521139653,0.74,188.67,188.65,38.1]
[1753521140255,0.74,188.67,188.64,9.44358237]
[1753521140557,0.74,188.67,188.65,38.1]
[1753521141950,0.71,188.66,188.64,4.14253908]
[1753521142268,0.71,188.66,188.65,38.1]
[1753521144071,0.03,188.67,188.65,38.1]
[1753521144267,0.74,188.67,188.65,38.1]
[1753521145774,0.71,188.66,188.65,38.1]
[1753521145950,0.03,188.67,188.65,38.1]
[1753521146150,0.74,188.67,188.65,38.1]
[1753521146363,0.71,188.66,188.63,9.4438563]
[1753521146652,0.03,188.67,188.64,38.08]
[1753521146959,0.03,188.67,188.64,42.22253908]
[1753521147158,0.74,188.67,188.64,42.22253908]
[1753521149170,0.74,188.67,188.64,38.08]
[1753521149469,0.74,188.67,188.64,42.22253908]
[1753521149777,0.71,188.66,188.6,93.79063908]
[1753521150069,0.71,188.66,188.62,4.14253908]
[1753521150251,0.71,188.66,188.63,38.08]
[1753521150781,0.71,188.65,188.63,38.08]
[1753521151359,0.71,188.65,188.63,42.22253908]
[1753521151954,0.71,188.65,188.63,38.08]
[1753521152153,0.71,188.65,188.63,42.22253908]
[1753521154472,0.74,188.67,188.63,42.22253908]
[1753521154672,0.71,188.66,188.63,38.08]
[1753521154968,0.71,188.66,188.63,42.22253908]
[1753521156061,0.71,188.66,188.63,38.08]
[1753521159651,0.03,188.67,188.63,38.08]
[1753521159977,0.03,188.67,188.65,4.14253908]
[1753521160180,0.03,188.67,188.66,38.08]
[1753521160387,0.03,188.67,188.66,38.75]
[1753521160586,0.03,188.67,188.66,38.08]
[1753521172675,0.03,188.67,188.65,44.03071561]
[1753521174482,0.03,188.67,188.65,5.97071561]
[1753521174663,0.03,188.67,188.64,5.30103783]
[1753521174864,0.7,188.67,188.65,38.06]
[1753521175067,0.03,188.67,188.65,38.06]
[1753521175390,0.03,188.67,188.65,38.73]
[1753521177471,0.67,188.66,188.65,38.04]
[1753521179405,0.67,188.66,188.63,0.06]
[1753521179695,4.14253908,188.65,188.63,0.06]
[1753521179894,0.03,188.67,188.64,43.38264934]
[1753521180197,0.03,188.67,188.66,20.92722305]
[1753521180356,0.03,188.67,188.66,59.49727711]
[1753521180691,0.03,188.67,188.66,60.16727711]
[1753521181058,0.03,188.75,188.67,1.6115]
[1753521181287,0.03,188.75,188.7,4.14253908]
[1753521181596,0.03,188.75,188.7,47.48195614]
[1753521182087,0.03,188.75,188.7,48.15195614]
[1753521185268,0.03,188.75,188.7,10.11195614]
[1753521185594,0.03,188.75,188.7,43.98941706]
[1753521185783,0.03,188.75,188.7,10.11195614]
[1753521185973,0.03,188.75,188.68,5.82971971]
[1753521186175,0.03,188.75,188.69,38.02]
[1753521186176,0.66,188.7,188.69,38.02]
[1753521186375,0.66,188.72,188.69,38.02]
[1753521187289,0.69,188.71,188.69,38.02]
[1753521187493,0.66,188.7,188.65,6.4244]
[1753521187673,0.66,188.7,188.66,38.02]
[1753521188918,0.66,188.7,188.67,38.02]
[1753521189414,0.66,188.69,188.67,38.02]
[1753521189904,9.4717229,188.71,188.67,38.02]
[1753521190089,0.66,188.68,188.65,4.14253908]
[1753521190293,0.66,188.67,188.64,9.44360783]
[1753521190503,0.66,188.67,188.65,38.02]
[1753521191278,0.66,188.69,188.65,38.02]
[1753521191637,0.66,188.68,188.65,38.02]
[1753521198127,0.66,188.67,188.63,0.06]
[1753521198330,4.14253908,188.64,188.63,0.06]
[1753521198624,30.80253908,188.64,188.63,0.06]
[1753521199157,36.1036417,188.64,188.63,0.06]
[1753521200320,10.1036417,188.64,188.63,0.06]
[1753521201222,10.24580327,188.64,188.63,0.06]
[1753521201721,10.38796484,188.64,188.63,0.06]
[1753521204025,9.72796484,188.64,188.63,0.06]
[1753521204435,10.38796484,188.64,188.63,0.06]
[1753521205433,26.0,188.64,188.63,0.06]
[1753521205842,26.66,188.64,188.63,0.06]
[1753521206015,30.80253908,188.64,188.63,0.06]
[1753521206326,30.14253908,188.64,188.63,0.06]
[1753521206708,26.0,188.64,188.63,0.06]
[1753521207137,22.87568397,188.68,188.63,0.72]
[1753521207138,0.03,188.68,188.63,0.72]
[1753521207336,0.03,188.68,188.66,4.14253908]
[1753521207643,0.03,188.68,188.67,4.14253908]
[1753521208024,0.03,188.68,188.67,4.80253908]
[1753521208230,0.03,188.68,188.67,0.66]
[1753521209318,0.03,188.68,188.64,5.96100518]
[1753521209533,0.03,188.68,188.65,4.14253908]
[1753521209738,0.03,188.68,188.65,4.80253908]
[1753521209916,0.69,188.68,188.64,0.66]
[1753521210428,4.14253908,188.66,188.63,0.06]
[1753521210630,4.14253908,188.64,188.63,0.06]
[1753521211029,4.80253908,188.64,188.63,0.06]
[1753521212130,4.14253908,188.64,188.63,0.06]
[1753521212536,10.1036417,188.64,188.63,0.06]
[1753521217051,5.96110262,188.64,188.63,0.06]
[1753521218748,0.03,188.68,188.63,4.87253908]
[1753521218955,0.03,188.68,188.64,4.81253908]
[1753521219555,0.03,188.68,188.65,0.67]
[1753521220034,0.03,188.68,188.66,4.14253908]
[1753521220225,0.03,188.68,188.67,4.14253908]
[1753521220630,0.03,188.68,188.67,4.81253908]
[1753521223364,0.03,188.68,188.67,10.11279879]
[1753521227345,0.03,188.71,188.7,26.0]
[1753521227546,0.03,188.71,188.7,34.81501986]
[1753521227742,0.03,188.71,188.7,90.22970383]
[1753521228160,0.03,188.71,188.7,52.26970383]
[1753521228354,0.03,188.71,188.7,91.38658181]
[1753521228559,0.03,188.71,188.7,53.42658181]
[1753521228764,0.03,188.71,188.7,91.38658181]
[1753521230882,0.03,188.71,188.7,4.14253908]
[1753521231059,0.03,188.71,188.68,42.10253908]
[1753521231264,0.74,188.71,188.68,42.10253908]
[1753521231583,0.74,188.71,188.68,4.14253908]
[1753521231860,0.71,188.7,188.67,4.14253908]
[1753521232060,0.71,188.7,188.67,9.44271005]
[1753521232245,0.71,188.7,188.67,4.14253908]
[1753521232855,0.71,188.69,188.64,5.79303908]
[1753521233057,0.71,188.68,188.64,44.42303908]
[1753521233539,0.71,188.7,188.65,4.81253908]
[1753521233955,0.71,188.7,188.66,4.81253908]
[1753521234153,0.03,188.71,188.66,4.14253908]
[1753521234357,0.74,188.71,188.66,4.81253908]
[1753521234759,0.74,188.71,188.67,4.81253908]
[1753521235154,0.74,188.71,188.67,4.14253908]
[1753521236650,0.03,188.71,188.68,4.81253908]
[1753521237048,0.03,188.71,188.68,4.14253908]
[1753521237248,0.74,188.71,188.68,4.14253908]
[1753521238972,0.74,188.71,188.67,4.14253908]
[1753521239185,0.71,188.7,188.67,4.14253908]
[1753521241971,0.71,188.7,188.66,5.97049566]
[1753521242169,0.71,188.7,188.67,4.14253908]
[1753521242768,0.03,188.71,188.64,1.6505]
[1753521242976,0.71,188.69,188.65,9.4433607]
[1753521243183,0.71,188.69,188.66,4.14253908]
[1753521243351,0.74,188.71,188.66,0.67]
[1753521243550,0.71,188.7,188.66,4.81253908]
[1753521244062,0.71,188.7,188.67,4.14253908]
[1753521244970,0.71,188.7,188.66,4.81253908]
[1753521245371,0.71,188.69,188.65,4.14253908]
[1753521246065,0.71,188.69,188.65,4.82253908]
[1753521248563,0.03,188.7,188.67,4.14253908]
[1753521248770,0.03,188.7,188.68,4.14253908]
[1753521249161,0.03,188.7,188.67,4.82253908]
[1753521249566,0.03,188.7,188.68,0.68]
[1753521249765,0.03,188.7,188.69,4.14253908]
[1753521250275,0.03,188.7,188.69,4.82253908]
[1753521250778,0.03,188.7,188.69,10.12223699]
[1753521251161,0.03,188.7,188.69,26.90692096]
[1753521251475,0.03,188.71,188.69,26.90692096]
[1753521251476,0.03,188.71,188.7,16.78468397]
[1753521251662,0.03,188.71,188.7,25.74976213]
[1753521253962,0.03,188.71,188.7,31.04917919]
[1753521257172,0.03,188.71,188.7,68.96917919]
[1753521257380,0.03,188.71,188.7,48.04195614]
[1753521258375,0.03,188.71,188.7,48.57189784]
[1753521260882,0.03,188.71,188.7,44.42935876]
[1753521261184,0.03,188.71,188.7,48.57189784]
[1753521263184,0.03,188.71,188.7,69.49912089]
[1753521263485,0.03,188.74,188.72,16.78468397]
[1753521263782,0.03,188.74,188.73,59.35708051]
[1753521264290,0.03,188.74,188.73,60.03708051]
[1753521265273,0.03,188.74,188.73,65.33565519]
[1753521265475,0.03,188.75,188.74,16.78468397]
[1753521265768,0.03,188.75,188.74,21.60722305]
[1753521267063,0.03,188.75,188.74,22.13705244]
[1753521267474,0.03,188.75,188.74,27.43534638]
[1753521269168,0.71,188.87,188.79,16.78468397]
[1753521269373,4.14253908,188.86,188.8,37.88]
[1753521269572,4.85253908,188.85,188.8,37.88]
[1753521269900,0.71,188.84,188.8,37.88]
[1753521271290,0.71,188.84,188.75,8.31850132]
[1753521271494,4.14253908,188.83,188.77,4.14253908]
[1753521271794,0.71,188.82,188.78,37.88]
[1753521272589,0.71,188.82,188.77,4.14253908]
[1753521272782,0.71,188.82,188.78,37.88]
[1753521273576,5.29553844,188.84,188.78,42.70253908]
[1753521273778,0.71,188.82,188.78,42.02253908]
[1753521274869,0.71,188.82,188.78,37.88]
[1753521274870,6.00613298,188.82,188.78,37.88]
[1753521275072,0.71,188.81,188.78,37.88]
[1753521275274,0.71,188.8,188.78,37.88]
[1753521275495,0.71,188.8,188.77,4.14253908]
[1753521275694,0.71,188.8,188.77,42.02253908]
[1753521277393,0.71,188.8,188.77,47.3198893]
[1753521278099,0.69,188.82,188.77,47.9798893]
[1753521278398,0.69,188.82,188.77,47.9598893]
[1753521278795,0.69,188.82,188.76,43.15771616]
[1753521279007,0.69,188.82,188.77,4.14253908]
[1753521279308,0.69,188.81,188.77,4.80253908]
[1753521280372,0.69,188.8,188.77,4.80253908]
[1753521281301,0.69,188.8,188.77,4.14253908]
[1753521281506,0.69,188.79,188.77,4.14253908]
[1753521282175,0.69,188.81,188.77,4.14253908]
[1753521282387,5.29582402,188.83,188.77,4.14253908]
[1753521282388,0.69,188.8,188.77,4.14253908]
[1753521282711,0.69,188.8,188.76,42.00253908]
[1753521282909,0.69,188.8,188.76,37.86]
[1753521283118,0.69,188.8,188.75,4.14253908]
[1753521283119,5.98661266,188.8,188.75,4.14253908]
[1753521283318,5.98661266,188.8,188.74,37.86]
[1753521283319,0.69,188.79,188.74,37.86]
[1753521283699,4.83253908,188.79,188.72,4.80253908]
[1753521283896,5.29661266,188.8,188.72,10.1013908]
[1753521283897,0.69,188.78,188.72,10.1013908]
[1753521284098,0.69,188.78,188.73,4.14253908]
[1753521284413,0.69,188.78,188.74,4.80253908]
[1753521286020,0.69,188.77,188.74,4.80253908]
[1753521288335,5.29585301,188.83,188.76,4.14253908]
[1753521288627,0.69,188.84,188.79,4.14253908]
[1753521288791,0.69,188.83,188.79,4.14253908]
[1753521289213,30.14253908,188.85,188.79,4.14253908]
[1753521289529,0.69,188.84,188.79,4.14253908]
[1753521289728,5.9856543,188.84,188.79,4.14253908]
[1753521289903,5.2956543,188.84,188.78,4.14253908]
[1753521290093,0.69,188.83,188.78,4.14253908]
[1753521290293,0.69,188.82,188.78,4.80253908]
[1753521290520,0.69,188.82,188.77,5.29730577]
[1753521290521,5.9856543,188.84,188.79,4.80253908]
[1753521290730,5.9856543,188.84,188.8,4.80253908]
[1753521291027,0.69,188.83,188.79,4.14253908]
[1753521291612,0.69,188.82,188.78,4.14253908]
[1753521291793,4.14253908,188.81,188.74,4.14253908]
[1753521291999,4.14253908,188.81,188.73,0.66]
[1753521292000,0.69,188.8,188.75,4.14253908]
[1753521292213,0.69,188.8,188.74,4.14253908]
[1753521292610,0.69,188.8,188.74,4.80253908]